Workbook

Sheet ROMBERG GD
B2: ROMBERG QUADRATURE | F2: CLICK THE ORANGE BUTTON
B3: AND FUNCTION PLOTTING CHART | F3: CLICK BUTTON TO SWITCH | H3: SHOW /HIDE
B4: Finite Interval (a,b) | F4: BETWEEN "SHOW RESULTS" AND
F5: "HIDE RESULTS" | H5: 0
B6: UDF Name: QUAD_ROMBERG_GD
A8: FUNCTION PLOTTER | J8: OVERALL PROGRAM PERFORMANCE
A9: CLICK THE "CLICK TO SHOW CHART" BUTTON, THEN SELECT FUNCTION WITH UP/DOWN BUTTONS | G9: SELECT FUNCTION | H9: SHOW / HIDE | J9: Total | K9: Total Time | L9: Total True | M9: Total Number of
A10: No. | B10: Cell Function Plotted | C10: Name | D10: Variable | E10: a | F10: b | J10: Func Evals: | K10: in Seconds: | L10: Error: | M10: Correct Digits:
A11: 4 | B11: =IF($H$11=1,INDEX($B$16:$B$1000,$A$11),"") ->  | C11: =IF($H$11=1,INDEX($C$16:$C$1000,$A$11),"") ->  | D11: =IF($H$11=1,INDEX($D$16:$D$1000,$A$11),"") ->  | E11: =IF($H$11=1,INDEX($E$16:$E$1000,$A$11),"") ->  | F11: =IF($H$11=1,INDEX($F$16:$F$1000,$A$11),"") ->  | G11: 0 | H11: 0 | J11: =IF($H$5=1,SUMIF(J16:J1000,">0"),"") ->  | K11: =IF($H$5=1,SUMIF(K16:K1000,">0"),"") ->  | L11: =IF($H$5=1,SUMIF(L16:L1000,">0"),"") ->  | M11: =IF($H$5=1,CONCATENATE(SUMIF(M16:M1000,">0")," of ",COUNTIF(M16:M1000,">0")*15," (",ROUND(SUMIF(M16:M1000,">0")/COUNTIF(M16:M1000,">0")/15*100,1),"%)" ),"") -> 
J12: ↓↓↓ | K12: ↓↓↓ | L12: ↓↓↓ | M12: ↓↓↓
M13: =IF(COUNTIF(N16:N1000,"Cannot calculate")>0,"Error message(s) below ↓↓↓","") -> 
B14: ROMBERG PROGRAM INPUTS | G14: TRUE | H14: ROMBERG PROGRAM OUTPUTS
A15: No. | B15: Cell Function | C15: Name | D15: Variable | E15: a | F15: b | G15: INTEGRAL | H15: Integral | I15: Est. Error | J15: Func Evals | K15: Time (secs) | L15: True Error | M15: Correct Digits | N15: Message
A16: 1 | B16: 1/SQRT(x) | C16: FINITE_1 | D16: x | E16: 0 | F16: 1 | G16: =2 -> 2 | H16: =IF($H$5=1,QUAD_ROMBERG_GD(B16,D16,E16,F16),"") ->  | L16: =IF($H$5=1,IF(AND(ISNUMBER(G16),ISNUMBER(H16)),IF(G16=0,ABS(ABS(G16)-ABS(H16)), ABS(ABS(G16)-ABS(H16))/ABS(G16)),""),"") ->  | M16: =IF($H$5=1,IF(AND(ISNUMBER(G16),ISNUMBER(H16)),IF(L16=0,15,IF(L16>1,0,IF(INT(ABS(LOG(L16)))>15,15,INT(ABS(LOG(L16)))))),""),"") ->  | N16: =IF($H$5=1,IF(OR(ISNUMBER(H16)=FALSE,M16=0),"Cannot calculate",""),"") -> 
A17: 2 | B17: SQRT(4-x^2) | C17: FINITE_2 | D17: x | E17: 0 | F17: 2 | G17: =PI() -> 3.141592654 | H17: =IF($H$5=1,QUAD_ROMBERG_GD(B17,D17,E17,F17),"") ->  | L17: =IF($H$5=1,IF(AND(ISNUMBER(G17),ISNUMBER(H17)),IF(G17=0,ABS(ABS(G17)-ABS(H17)), ABS(ABS(G17)-ABS(H17))/ABS(G17)),""),"") ->  | M17: =IF($H$5=1,IF(AND(ISNUMBER(G17),ISNUMBER(H17)),IF(L17=0,15,IF(L17>1,0,IF(INT(ABS(LOG(L17)))>15,15,INT(ABS(LOG(L17)))))),""),"") ->  | N17: =IF($H$5=1,IF(OR(ISNUMBER(H17)=FALSE,M17=0),"Cannot calculate",""),"") -> 
A18: 3 | B18: LN(x) | C18: FINITE_3 | D18: x | E18: 0 | F18: 1 | G18: =-1 -> -1 | H18: =IF($H$5=1,QUAD_ROMBERG_GD(B18,D18,E18,F18),"") ->  | N18: =IF($H$5=1,IF(OR(ISNUMBER(H18)=FALSE,M18=0),"Cannot calculate",""),"") -> 
A19: 4 | B19: x*LN(x) | C19: FINITE_4 | D19: x | E19: 0 | F19: 1 | G19: =-0.25 -> -0.25 | H19: =IF($H$5=1,QUAD_ROMBERG_GD(B19,D19,E19,F19),"") -> 
A20: 5 | B20: LN(x)/SQRT(x) | C20: FINITE_5 | D20: x | E20: 0 | F20: 1 | G20: =-4 -> -4 | H20: =IF($H$5=1,QUAD_ROMBERG_GD(B20,D20,E20,F20),"") -> 
A21: 6 | B21: 4/(1+x^2) | C21: FINITE_6 | D21: x | E21: 0 | F21: 1 | G21: =PI() -> 3.141592654 | H21: =IF($H$5=1,QUAD_ROMBERG_GD(B21,D21,E21,F21),"") -> 
A22: 7 | B22: SIN(x)^4*COS(x)^2 | C22: FINITE_7 | D22: x | E22: 0 | F22: =PI()/2 -> 1.570796327 | G22: =0.098174770424681 -> 0.09817477042 | H22: =IF($H$5=1,QUAD_ROMBERG_GD(B22,D22,E22,F22),"") -> 
A23: 8 | B23: COS(x) | C23: FINITE_8 | D23: x | E23: 0 | F23: =PI() -> 3.141592654 | G23: 0 | H23: =IF($H$5=1,QUAD_ROMBERG_GD(B23,D23,E23,F23),"") -> 
A24: 9 | B24: COS(LN(x)) | C24: FINITE_9 | D24: x | E24: 0 | F24: 1 | G24: =0.5 -> 0.5 | H24: =IF($H$5=1,QUAD_ROMBERG_GD(B24,D24,E24,F24),"") -> 
A25: 10 | B25: SQRT(4*x-x^2) | C25: FINITE_10 | D25: x | E25: 0 | F25: 2 | G25: =PI() -> 3.141592654 | H25: =IF($H$5=1,QUAD_ROMBERG_GD(B25,D25,E25,F25),"") -> 
A26: 11 | B26: 5*x^2 | C26: FINITE_11 | D26: x | E26: 0 | F26: 10 | G26: =10000/6 -> 1666.666667 | H26: =IF($H$5=1,QUAD_ROMBERG_GD(B26,D26,E26,F26),"") -> 
A27: 12 | B27: x^0.125 | C27: FINITE_12 | D27: x | E27: 0 | F27: 1 | G27: =8/9 -> 0.8888888889 | H27: =IF($H$5=1,QUAD_ROMBERG_GD(B27,D27,E27,F27),"") -> 
A28: 13 | B28: 1/x | C28: FINITE_13 | D28: x | E28: 1 | F28: 10 | G28: =LN(10) -> 2.302585093 | H28: =IF($H$5=1,QUAD_ROMBERG_GD(B28,D28,E28,F28),"") -> 
A29: 14 | B29: LN(x)/(1-x) | C29: FINITE_14 | D29: x | E29: 0.5 | F29: 1 | G29: =-0.582240526465013 -> -0.5822405265 | H29: =IF($H$5=1,QUAD_ROMBERG_GD(B29,D29,E29,F29),"") -> 
A30: 15 | B30: EXP(-1/COS(x)) | C30: FINITE_15 | D30: x | E30: 0 | F30: =PI()/3 -> 1.047197551 | G30: =0.307694394903451 -> 0.3076943949 | H30: =IF($H$5=1,QUAD_ROMBERG_GD(B30,D30,E30,F30),"") ->  | L30: =IF($H$5=1,IF(AND(ISNUMBER(G30),ISNUMBER(H30)),IF(G30=0,ABS(ABS(G30)-ABS(H30)), ABS(ABS(G30)-ABS(H30))/ABS(G30)),""),"") -> 
A31: 16 | B31: (x*(x+88)*(x-88)*(x+47)*(x-47)*(x+117)*(x-117))^2 | C31: FINITE_16 | D31: x | E31: 0 | F31: 128 | G31: =1.31026895522267E+28/2 -> 6.551344776e+27 | H31: =IF($H$5=1,QUAD_ROMBERG_GD(B31,D31,E31,F31),"") -> 
A32: 17 | B32: EXP(-(x^2)) | C32: FINITE_17 | D32: x | E32: 0 | F32: 100 | G32: =0.886226925452758 -> 0.8862269255 | H32: =IF($H$5=1,QUAD_ROMBERG_GD(B32,D32,E32,F32),"") -> 
A33: 18 | B33: 2*x^2/(x+1)/(x-1)-x/LN(x) | C33: FINITE_18 | D33: x | E33: 0 | F33: 1 | G33: =2-"0.577215664901532860606512"-LN(4) -> 0.03648997398 | H33: =IF($H$5=1,QUAD_ROMBERG_GD(B33,D33,E33,F33),"") -> 
A34: 19 | B34: x*LN(1+x) | C34: FINITE_19 | D34: x | E34: 0 | F34: 1 | G34: =0.25 -> 0.25 | H34: =IF($H$5=1,QUAD_ROMBERG_GD(B34,D34,E34,F34),"") -> 
A35: 20 | B35: x^2*ATAN(x) | C35: FINITE_20 | D35: x | E35: 0 | F35: 1 | G35: =(PI()-2+2*LN(2))/12 -> 0.2106572512 | H35: =IF($H$5=1,QUAD_ROMBERG_GD(B35,D35,E35,F35),"") -> 
A36: 21 | B36: EXP(x)*COS(x) | C36: FINITE_21 | D36: x | E36: 0 | F36: =PI()/2 -> 1.570796327 | G36: =(EXP(PI()/2)-1)/2 -> 1.90523869 | H36: =IF($H$5=1,QUAD_ROMBERG_GD(B36,D36,E36,F36),"") -> 
A37: 22 | B37: ATAN(SQRT(x^2+2))/(1+x^2)/SQRT(x^2+2) | C37: FINITE_22 | D37: x | E37: 0 | F37: 1 | G37: =5*PI()^2/96 -> 0.5140418959 | H37: =IF($H$5=1,QUAD_ROMBERG_GD(B37,D37,E37,F37),"") -> 
A38: 23 | B38: LN(x)*SQRT(x) | C38: FINITE_23 | D38: x | E38: 0 | F38: 1 | G38: =-4/9 -> -0.4444444444 | H38: =IF($H$5=1,QUAD_ROMBERG_GD(B38,D38,E38,F38),"") -> 
A39: 24 | B39: SQRT(1-x^2) | C39: FINITE_24 | D39: x | E39: 0 | F39: 1 | G39: =PI()/4 -> 0.7853981634 | H39: =IF($H$5=1,QUAD_ROMBERG_GD(B39,D39,E39,F39),"") -> 
A40: 25 | B40: SQRT(x)/SQRT(1-x^2) | C40: FINITE_25 | D40: x | E40: 0 | F40: 1 | G40: =0.337989120033642*SQRT(PI())*2 -> 1.198140235 | H40: =IF($H$5=1,QUAD_ROMBERG_GD(B40,D40,E40,F40),"") -> 
A41: 26 | B41: LN(x)^2 | C41: FINITE_26 | D41: x | E41: 0 | F41: 1 | G41: =2 -> 2 | H41: =IF($H$5=1,QUAD_ROMBERG_GD(B41,D41,E41,F41),"") -> 
A42: 27 | B42: LN(COS(x)) | C42: FINITE_27 | D42: x | E42: 0 | F42: =PI()/2 -> 1.570796327 | G42: =-PI()*LN(2)/2 -> -1.088793045 | H42: =IF($H$5=1,QUAD_ROMBERG_GD(B42,D42,E42,F42),"") -> 
A43: 28 | B43: SQRT(TAN(x)) | C43: FINITE_28 | D43: x | E43: 0 | F43: =PI()/2 -> 1.570796327 | G43: =PI()*SQRT(2)/2 -> 2.221441469 | H43: =IF($H$5=1,QUAD_ROMBERG_GD(B43,D43,E43,F43),"") -> 
A44: 29 | B44: LN(x^2) | C44: FINITE_29 | D44: x | E44: 0 | F44: 1 | G44: =-2 -> -2 | H44: =IF($H$5=1,QUAD_ROMBERG_GD(B44,D44,E44,F44),"") -> 
A45: 30 | B45: x*SIN(x)/(1+COS(x)^2) | C45: FINITE_30 | D45: x | E45: 0 | F45: =PI() -> 3.141592654 | G45: =PI()^2/4 -> 2.4674011 | H45: =IF($H$5=1,QUAD_ROMBERG_GD(B45,D45,E45,F45),"") -> 
A46: 31 | B46: 1/(x-2)/((1-x)^0.25)/((1+x)^0.75) | C46: FINITE_31 | D46: x | E46: 0 | F46: 1 | G46: =-0.691183688767295 -> -0.6911836888 | H46: =IF($H$5=1,QUAD_ROMBERG_GD(B46,D46,E46,F46),"") -> 
A47: 32 | B47: COS(PI()*x)/SQRT(1-x) | C47: FINITE_32 | D47: x | E47: -1 | F47: 1 | G47: =-0.690494588746605 -> -0.6904945887 | H47: =IF($H$5=1,QUAD_ROMBERG_GD(B47,D47,E47,F47),"") -> 
A48: 33 | B48: x^2*LN(x)/(x^2-1)/(x^4+1) | C48: FINITE_33 | D48: x | E48: 0 | F48: 1 | G48: =(PI()^2)*(2-SQRT(2))/32 -> 0.1806712626 | H48: =IF($H$5=1,QUAD_ROMBERG_GD(B48,D48,E48,F48),"") -> 
A49: 34 | B49: 1/(1-2*x+2*x^2) | C49: FINITE_34 | D49: x | E49: 0 | F49: 1 | G49: =PI()/2 -> 1.570796327 | H49: =IF($H$5=1,QUAD_ROMBERG_GD(B49,D49,E49,F49),"") -> 
A50: 35 | B50: EXP(1-1/x)/SQRT(x^3-x^4) | C50: FINITE_35 | D50: x | E50: 0 | F50: 1 | G50: =SQRT(PI()) -> 1.772453851 | H50: =IF($H$5=1,QUAD_ROMBERG_GD(B50,D50,E50,F50),"") -> 
A51: 36 | B51: EXP(1-1/x)*COS(1/x-1)/x^2 | C51: FINITE_36 | D51: x | E51: 0 | F51: 1 | G51: 0.5 | H51: =IF($H$5=1,QUAD_ROMBERG_GD(B51,D51,E51,F51),"") -> 
A52: 37 | B52: x/SQRT(1-x^2) | C52: FINITE_37 | D52: x | E52: 0 | F52: 1 | G52: =1 -> 1 | H52: =IF($H$5=1,QUAD_ROMBERG_GD(B52,D52,E52,F52),"") -> 
A53: 38 | B53: (1-x)^4*x^4/(1+x^2) | C53: FINITE_38 | D53: x | E53: 0 | F53: 1 | G53: =22/7-PI() -> 0.001264489267 | H53: =IF($H$5=1,QUAD_ROMBERG_GD(B53,D53,E53,F53),"") -> 
A54: 39 | B54: x^4*(1-x)^4 | C54: FINITE_39 | D54: x | E54: 0 | F54: 1 | G54: =1/630 -> 0.001587301587 | H54: =IF($H$5=1,QUAD_ROMBERG_GD(B54,D54,E54,F54),"") -> 
A55: 40 | B55: ATAN(SQRT(x^2+1))/(x^2+1)^(3/2) | C55: FINITE_40 | D55: x | E55: 0 | F55: 1 | G55: =(0.25-SQRT(2)/2)*PI()+3/2*SQRT(2)*ATAN(SQRT(2)) -> 0.5904892709 | H55: =IF($H$5=1,QUAD_ROMBERG_GD(B55,D55,E55,F55),"") -> 
A56: 41 | B56: 1/(1+x^2+x^4+x^6) | C56: FINITE_41 | D56: x | E56: -1 | F56: 1 | G56: =PI()/4+LN(1+SQRT(2))/SQRT(2) -> 1.408623404 | H56: =IF($H$5=1,QUAD_ROMBERG_GD(B56,D56,E56,F56),"") -> 
A57: 42 | B57: (PI()/4-x*TAN(x))*TAN(x) | C57: FINITE_42 | D57: x | E57: 0 | F57: =PI()/4 -> 0.7853981634 | G57: =LN(2)/2+PI()^2/32-PI()/4+(PI()*LN(2))/8 -> 0.1417988257 | H57: =IF($H$5=1,QUAD_ROMBERG_GD(B57,D57,E57,F57),"") -> 
A58: 43 | B58: x^2/SIN(x)^2 | C58: FINITE_43 | D58: x | E58: 0 | F58: =PI()/2 -> 1.570796327 | G58: =PI()*LN(2) -> 2.17758609 | H58: =IF($H$5=1,QUAD_ROMBERG_GD(B58,D58,E58,F58),"") -> 
A59: 44 | B59: LN(COS(x))^2 | C59: FINITE_44 | D59: x | E59: 0 | F59: =PI()/2 -> 1.570796327 | G59: =PI()^3/24+PI()*LN(2)^2/2 -> 2.046622024 | H59: =IF($H$5=1,QUAD_ROMBERG_GD(B59,D59,E59,F59),"") -> 
A60: 45 | B60: LN(x)^2/(x^2+x+1) | C60: FINITE_45 | D60: x | E60: 0 | F60: 1 | G60: =8*PI()^3/(81*SQRT(3)) -> 1.768047624 | H60: =IF($H$5=1,QUAD_ROMBERG_GD(B60,D60,E60,F60),"") -> 
A61: 46 | B61: LN(1+x^2)/x^2 | C61: FINITE_46 | D61: x | E61: 0 | F61: 1 | G61: =PI()/2-LN(2) -> 0.8776491462 | H61: =IF($H$5=1,QUAD_ROMBERG_GD(B61,D61,E61,F61),"") -> 
A62: 47 | B62: ATAN(x)/(x*SQRT(1-x^2)) | C62: FINITE_47 | D62: x | E62: 0 | F62: 1 | G62: =(PI()*LN(1+SQRT(2)))/2 -> 1.384458393 | H62: =IF($H$5=1,QUAD_ROMBERG_GD(B62,D62,E62,F62),"") -> 
A63: 48 | B63: x^2/(1+x^4)/SQRT(1-x^4) | C63: FINITE_48 | D63: x | E63: 0 | F63: 1 | G63: =PI()/8 -> 0.3926990817 | H63: =IF($H$5=1,QUAD_ROMBERG_GD(B63,D63,E63,F63),"") -> 
A64: 49 | B64: EXP(-(x^2))*LN(x) | C64: FINITE_49 | D64: x | E64: 17 | F64: 42 | G64: =2.56572850056105E-127 -> 2.565728501e-127 | H64: =IF($H$5=1,QUAD_ROMBERG_GD(B64,D64,E64,F64),"") -> 
A65: 50 | B65: 1/SQRT(1-x^2) | C65: FINITE_50 | D65: x | E65: -1 | F65: 1 | G65: =PI() -> 3.141592654 | H65: =IF($H$5=1,QUAD_ROMBERG_GD(B65,D65,E65,F65),"") -> 
A66: 51 | B66: (1+x)^2*SIN(2*PI()/(1+x)) | C66: FINITE_51 | D66: x | E66: 0 | F66: 1 | G66: =-1.2577347112237 -> -1.257734711 | H66: =IF($H$5=1,QUAD_ROMBERG_GD(B66,D66,E66,F66),"") -> 
A67: 52 | B67: x*(1-x)^0.1 | C67: FINITE_52 | D67: x | E67: 0 | F67: 1 | G67: =0.432900432900432 -> 0.4329004329 | H67: =IF($H$5=1,QUAD_ROMBERG_GD(B67,D67,E67,F67),"") -> 
A68: 53 | B68: LN(SIN(x)^3)*COS(x) | C68: FINITE_53 | D68: x | E68: 0 | F68: 1 | G68: =-2.96013608748744 -> -2.960136087 | H68: =IF($H$5=1,QUAD_ROMBERG_GD(B68,D68,E68,F68),"") -> 
A69: 54 | B69: x/(EXP(x)-1) | C69: FINITE_54 | D69: x | E69: 0 | F69: 1 | G69: 0.7775046341 | H69: =IF($H$5=1,QUAD_ROMBERG_GD(B69,D69,E69,F69),"") -> 
A70: 55 | B70: 1/(1+EXP(x)) | C70: FINITE_55 | D70: x | E70: 0 | F70: 1 | G70: =LN(2*EXP(1)/(1+EXP(1) ) ) -> 0.379885493 | H70: =IF($H$5=1,QUAD_ROMBERG_GD(B70,D70,E70,F70),"") -> 
A71: 56 | B71: EXP(x) | C71: FINITE_56 | D71: x | E71: 0 | F71: 1 | G71: =EXP(1)-1 -> 1.718281828 | H71: =IF($H$5=1,QUAD_ROMBERG_GD(B71,D71,E71,F71),"") -> 
A72: 57 | B72: 1/(1+x) | C72: FINITE_57 | D72: x | E72: 0 | F72: 1 | G72: =LN(2) -> 0.6931471806 | H72: =IF($H$5=1,QUAD_ROMBERG_GD(B72,D72,E72,F72),"") -> 
A73: 58 | B73: 0.92*COSH(x)-COS(x) | C73: FINITE_58 | D73: x | E73: -1 | F73: 1 | G73: =1.84*SINH(1)-2*SIN(1) -> 0.4794282267 | H73: =IF($H$5=1,QUAD_ROMBERG_GD(B73,D73,E73,F73),"") -> 
A74: 59 | B74: 1/(1+x^4) | C74: FINITE_59 | D74: x | E74: 0 | F74: 1 | G74: 0.8669729873 | H74: =IF($H$5=1,QUAD_ROMBERG_GD(B74,D74,E74,F74),"") -> 
A75: 60 | B75: 1/(x^4+x^2+0.9) | C75: FINITE_60 | D75: x | E75: -1 | F75: 1 | G75: 1.582232964 | H75: =IF($H$5=1,QUAD_ROMBERG_GD(B75,D75,E75,F75),"") -> 
A76: 61 | B76: 1/(x^2+1.005) | C76: FINITE_61 | D76: x | E76: -1 | F76: 1 | G76: 1.564396444 | H76: =IF($H$5=1,QUAD_ROMBERG_GD(B76,D76,E76,F76),"") -> 
A77: 62 | B77: 25*EXP(-25*x) | C77: FINITE_62 | D77: x | E77: 0 | F77: 10 | G77: 1 | H77: =IF($H$5=1,QUAD_ROMBERG_GD(B77,D77,E77,F77),"") -> 
A78: 63 | B78: SQRT(50)*EXP(-50*PI()*x^2) | C78: FINITE_63 | D78: x | E78: 0 | F78: 1 | G78: 0.5 | H78: =IF($H$5=1,QUAD_ROMBERG_GD(B78,D78,E78,F78),"") -> 
A79: 64 | B79: 50/(PI()*(1+2500*x^2)) | C79: FINITE_64 | D79: x | E79: 0 | F79: 10 | G79: 0.4993633811 | H79: =IF($H$5=1,QUAD_ROMBERG_GD(B79,D79,E79,F79),"") -> 
A80: 65 | B80: x*SQRT(x) | C80: FINITE_65 | D80: x | E80: 0 | F80: 1 | G80: 0.4 | H80: =IF($H$5=1,QUAD_ROMBERG_GD(B80,D80,E80,F80),"") -> 
A81: 66 | B81: x^0.5 | C81: FINITE_66 | D81: x | E81: 0 | F81: 1 | G81: =2/3 -> 0.6666666667 | H81: =IF($H$5=1,QUAD_ROMBERG_GD(B81,D81,E81,F81),"") ->  | L81: =IF($H$5=1,IF(AND(ISNUMBER(G81),ISNUMBER(H81)),IF(G81=0,ABS(ABS(G81)-ABS(H81)), ABS(ABS(G81)-ABS(H81))/ABS(G81)),""),"") ->  | M81: =IF($H$5=1,IF(AND(ISNUMBER(G81),ISNUMBER(H81)),IF(L81=0,15,IF(L81>1,0,IF(INT(ABS(LOG(L81)))>15,15,INT(ABS(LOG(L81)))))),""),"") ->  | N81: =IF($H$5=1,IF(OR(ISNUMBER(H81)=FALSE,M81=0),"Cannot calculate",""),"") -> 
A82: 67 | B82: COS(COS(x)+3*SIN(x)+2*COS(2*x)+3*SIN(2*x)+3*COS(3*x)) | C82: FINITE_67 | D82: x | E82: 0 | F82: =PI() -> 3.141592654 | G82: 0.8386763427 | H82: =IF($H$5=1,QUAD_ROMBERG_GD(B82,D82,E82,F82),"") -> 
A83: 68 | B83: EXP(-x/5)*(2+SIN(2*x)) | C83: FINITE_68 | D83: x | E83: 0 | F83: 10 | G83: =9.108239607323 -> 9.108239607 | H83: =IF($H$5=1,QUAD_ROMBERG_GD(B83,D83,E83,F83),"") -> 
A84: 69 | B84: x^(-1/3)*(1-x)^5 | C84: FINITE_69 | D84: x | E84: 0 | F84: 1 | G84: =2187/5236 -> 0.4176852559 | H84: =IF($H$5=1,QUAD_ROMBERG_GD(B84,D84,E84,F84),"") -> 
A85: 70 | B85: SIN(PI()*x) | C85: FINITE_70 | D85: x | E85: 0 | F85: 1 | G85: =2/PI() -> 0.6366197724 | H85: =IF($H$5=1,QUAD_ROMBERG_GD(B85,D85,E85,F85),"") -> 
A86: 71 | B86: x^0.25 | C86: FINITE_71 | D86: x | E86: 0 | F86: 1 | G86: 0.8 | H86: =IF($H$5=1,QUAD_ROMBERG_GD(B86,D86,E86,F86),"") -> 
A87: 72 | B87: x*SIN(20*x)*COS(50*x) | C87: FINITE_72 | D87: x | E87: 0 | F87: =2*PI() -> 6.283185307 | G87: =2*PI()/105 -> 0.05983986007 | H87: =IF($H$5=1,QUAD_ROMBERG_GD(B87,D87,E87,F87),"") -> 
A88: 73 | B88: LN(1/x)*x^4 | C88: FINITE_73 | D88: x | E88: 0 | F88: 1 | G88: 0.04 | H88: =IF($H$5=1,QUAD_ROMBERG_GD(B88,D88,E88,F88),"") -> 
A89: 74 | B89: COS(8*SIN(x)-x) | C89: FINITE_74 | D89: x | E89: 0 | F89: =PI() -> 3.141592654 | G89: =PI()*0.234636347 -> 0.737131824 | H89: =IF($H$5=1,QUAD_ROMBERG_GD(B89,D89,E89,F89),"") -> 
A90: 75 | B90: x*COS(x)*SIN(30*x) | C90: FINITE_75 | D90: x | E90: 0 | F90: =2*PI() -> 6.283185307 | G90: =-60*PI()/899 -> -0.2096724797 | H90: =IF($H$5=1,QUAD_ROMBERG_GD(B90,D90,E90,F90),"") -> 
A91: 76 | B91: x*COS(50*x)*SIN(30*x) | C91: FINITE_76 | D91: x | E91: 0 | F91: =2*PI() -> 6.283185307 | G91: =60*PI()/1600 -> 0.1178097245 | H91: =IF($H$5=1,QUAD_ROMBERG_GD(B91,D91,E91,F91),"") -> 
A92: 77 | B92: LN(x)*LN(1-x) | C92: FINITE_77 | D92: x | E92: 0 | F92: 1 | G92: =2-PI()^2/6 -> 0.3550659332 | H92: =IF($H$5=1,QUAD_ROMBERG_GD(B92,D92,E92,F92),"") -> 
A93: 78 | B93: SIN(2*x)^2 | C93: FINITE_78 | D93: x | E93: 0 | F93: =PI() -> 3.141592654 | G93: =PI()/2 -> 1.570796327 | H93: =IF($H$5=1,QUAD_ROMBERG_GD(B93,D93,E93,F93),"") -> 
A94: 79 | B94: x^(5/6)*(4-x)^(1/6)/(5-x)/(6-x)/(7-x) | C94: FINITE_79 | D94: x | E94: 0 | F94: 4 | G94: =(4*3^(5/6)-5^(5/6)-3^(1/6)*7^(5/6))*PI() -> 0.2842054108 | H94: =IF($H$5=1,QUAD_ROMBERG_GD(B94,D94,E94,F94),"") -> 
A95: 80 | B95: 1/(1+TAN(x)^3) | C95: FINITE_80 | D95: x | E95: 0 | F95: =PI()/2 -> 1.570796327 | G95: =PI()/4 -> 0.7853981634 | H95: =IF($H$5=1,QUAD_ROMBERG_GD(B95,D95,E95,F95),"") -> 
A96: 81 | B96: ATAN(SQRT(x^2+1))/SQRT(x^2+1)/(x^2+1) | C96: FINITE_81 | D96: x | E96: 0 | F96: 1 | G96: =PI()/4-PI()/2*SQRT(2)+3/2*SQRT(2)*ATAN(SQRT(2)) -> 0.5904892709 | H96: =IF($H$5=1,QUAD_ROMBERG_GD(B96,D96,E96,F96),"") -> 
A97: 82 | B97: LN(1-4*COS(x)+4) | C97: FINITE_82 | D97: x | E97: 0 | F97: =PI() -> 3.141592654 | G97: =2*PI()*LN(2) -> 4.355172181 | H97: =IF($H$5=1,QUAD_ROMBERG_GD(B97,D97,E97,F97),"") -> 
A98: 83 | B98: 1/(1+COS(x)^x) | C98: FINITE_83 | D98: x | E98: =-PI()/2 -> -1.570796327 | F98: =PI()/2 -> 1.570796327 | G98: =PI()/2 -> 1.570796327 | H98: =IF($H$5=1,QUAD_ROMBERG_GD(B98,D98,E98,F98),"") -> 
A99: 84 | B99: 1/SQRT(ABS(x-1)) | C99: FINITE_84 | D99: x | E99: 0 | F99: 1 | G99: 2 | H99: =IF($H$5=1,QUAD_ROMBERG_GD(B99,D99,E99,F99),"") -> 
A100: 85 | B100: 1/SQRT(x)*LN(1/x) | C100: FINITE_85 | D100: x | E100: 0 | F100: 1 | G100: 4 | H100: =IF($H$5=1,QUAD_ROMBERG_GD(B100,D100,E100,F100),"") -> 
A101: 86 | B101: 1/x^(1/4)*LN(1/x) | C101: FINITE_86 | D101: x | E101: 0 | F101: 1 | G101: =16/9 -> 1.777777778 | H101: =IF($H$5=1,QUAD_ROMBERG_GD(B101,D101,E101,F101),"") -> 
A102: 87 | B102: SIN(x)/x | C102: FINITE_87 | D102: x | E102: 0 | F102: 1 | G102: 0.9460830704 | H102: =IF($H$5=1,QUAD_ROMBERG_GD(B102,D102,E102,F102),"") -> 
A103: 88 | B103: SIN(x)^2*COS(x)^4 | C103: FINITE_88 | D103: x | E103: 0 | F103: =2*PI() -> 6.283185307 | G103: =PI()/8 -> 0.3926990817 | H103: =IF($H$5=1,QUAD_ROMBERG_GD(B103,D103,E103,F103),"") -> 
A104: 89 | B104: LOG(1+TAN(x)) | C104: FINITE_89 | D104: x | E104: 0 | F104: =PI()/4 -> 0.7853981634 | G104: =PI()*LOG(2)/8 -> 0.1182142029 | H104: =IF($H$5=1,QUAD_ROMBERG_GD(B104,D104,E104,F104),"") ->  | N104: =IF($H$5=1,IF(OR(ISNUMBER(H104)=FALSE,M104=0),"Cannot calculate",""),"") -> 
A105: 90 | B105: SIN(SIN(x)) | C105: FINITE_90 | D105: x | E105: 0 | F105: 1 | G105: =0.430606103120691 -> 0.4306061031 | H105: =IF($H$5=1,QUAD_ROMBERG_GD(B105,D105,E105,F105),"") -> 
A106: 91 | B106: x*COS(x^2+1) | C106: FINITE_91 | D106: x | E106: 0 | F106: 2 | G106: =(SIN(5)-SIN(1))/2 -> -0.9001976297 | H106: =IF($H$5=1,QUAD_ROMBERG_GD(B106,D106,E106,F106),"") -> 
A107: 92 | B107: x^2*(x^2-2)*SIN(x) | C107: FINITE_92 | D107: x | E107: 0 | F107: =PI()/2 -> 1.570796327 | G107: =PI()^3/2-14*PI()+28 -> -0.4791588101 | H107: =IF($H$5=1,QUAD_ROMBERG_GD(B107,D107,E107,F107),"") -> 
A108: 93 | B108: x^3/(EXP(x)-1) | C108: FINITE_93 | D108: x | E108: 0 | F108: 15 | G108: =PI()^4/15 -> 6.493939402 | H108: =IF($H$5=1,QUAD_ROMBERG_GD(B108,D108,E108,F108),"") -> 
A109: 94 | B109: LN(x)/(1+x) | C109: FINITE_94 | D109: x | E109: 0 | F109: 1 | G109: =-(PI()^2/12) -> -0.8224670334 | H109: =IF($H$5=1,QUAD_ROMBERG_GD(B109,D109,E109,F109),"") -> 
A110: 95 | B110: SQRT(1-0.5*SIN(x)^2) | C110: FINITE_95 | D110: x | E110: 0 | F110: =PI()/2 -> 1.570796327 | G110: =1.35064388104768 -> 1.350643881 | H110: =IF($H$5=1,QUAD_ROMBERG_GD(B110,D110,E110,F110),"") -> 
A111: 96 | B111: LN(x)^3 | C111: FINITE_96 | D111: x | E111: 0 | F111: 1 | G111: =-6 -> -6 | H111: =IF($H$5=1,QUAD_ROMBERG_GD(B111,D111,E111,F111),"") -> 
A112: 97 | B112: 1/(PI()*SQRT(1-x^2)) | C112: FINITE_97 | D112: x | E112: -1 | F112: 0.5 | G112: 0.6666666667 | H112: =IF($H$5=1,QUAD_ROMBERG_GD(B112,D112,E112,F112),"") -> 
A113: 98 | B113: LN((1+x)/(1-x))/4/LN(2) | C113: FINITE_98 | D113: x | E113: -1 | F113: 0.5 | G113: =((1+0.5)*LN(1+0.5)+(1-0.5)*LN(1-0.5))/4/LN(2)-0.5 -> -0.4056390622 | H113: =IF($H$5=1,QUAD_ROMBERG_GD(B113,D113,E113,F113),"") -> 
A114: 99 | B114: (23/25*COSH(x)-COS(x)) | C114: FINITE_99 | D114: x | E114: -1 | F114: 1 | G114: =46/25*SINH(1)-2*SIN(1) -> 0.4794282267 | H114: =IF($H$5=1,QUAD_ROMBERG_GD(B114,D114,E114,F114),"") -> 
A115: 100 | B115: 2/(2+SIN(10*PI()*x)) | C115: FINITE_100 | D115: x | E115: 0 | F115: 1 | G115: =2/SQRT(3) -> 1.154700538 | H115: =IF($H$5=1,QUAD_ROMBERG_GD(B115,D115,E115,F115),"") -> 
A116: 101 | B116: SIN(100*PI()*x)/PI()/x | C116: FINITE_101 | D116: x | E116: 0 | F116: 1 | G116: =0.498986808693045 -> 0.4989868087 | H116: =IF($H$5=1,QUAD_ROMBERG_GD(B116,D116,E116,F116),"") ->  | L116: =IF($H$5=1,IF(AND(ISNUMBER(G116),ISNUMBER(H116)),IF(G116=0,ABS(ABS(G116)-ABS(H116)), ABS(ABS(G116)-ABS(H116))/ABS(G116)),""),"") ->  | M116: =IF($H$5=1,IF(AND(ISNUMBER(G116),ISNUMBER(H116)),IF(L116=0,15,IF(L116>1,0,IF(INT(ABS(LOG(L116)))>15,15,INT(ABS(LOG(L116)))))),""),"") ->  | N116: =IF($H$5=1,IF(OR(ISNUMBER(H116)=FALSE,M116=0),"Cannot calculate",""),"") -> 
A117: 102 | B117: 1/(1+COS(x)) | C117: FINITE_102 | D117: x | E117: 0 | F117: =PI()/2 -> 1.570796327 | G117: =1 -> 1 | H117: =IF($H$5=1,QUAD_ROMBERG_GD(B117,D117,E117,F117),"") -> 
A118: 103 | B118: 1/(1.005+x^2) | C118: FINITE_103 | D118: x | E118: -1 | F118: 1 | G118: =1.56439644406904 -> 1.564396444 | H118: =IF($H$5=1,QUAD_ROMBERG_GD(B118,D118,E118,F118),"") -> 
A119: 104 | B119: 4*PI()^2*x*SIN(20*PI()*x)*COS(2*PI()*x) | C119: FINITE_104 | D119: x | E119: 0 | F119: 1 | G119: =-20*PI()/99 -> -0.6346651825 | H119: =IF($H$5=1,QUAD_ROMBERG_GD(B119,D119,E119,F119),"") -> 
A120: 105 | B120: 1/(1+(230*x-30)^2) | C120: FINITE_105 | D120: x | E120: 0 | F120: 1 | G120: =0.0134924856494677 -> 0.01349248565 | H120: =IF($H$5=1,QUAD_ROMBERG_GD(B120,D120,E120,F120),"") -> 
A121: 106 | B121: 50*(SIN(50*PI()*x)/(50*PI()*x))^2 | C121: FINITE_106 | D121: x | E121: 0 | F121: 1 | G121: =0.498986808693045 -> 0.4989868087 | H121: =IF($H$5=1,QUAD_ROMBERG_GD(B121,D121,E121,F121),"") -> 
A122: 107 | B122: COS(COS(x)+3*SIN(x)+2*COS(2*x)+3*COS(3*x)) | C122: FINITE_107 | D122: x | E122: 0 | F122: =PI() -> 3.141592654 | G122: 0.2910187829 | H122: =IF($H$5=1,QUAD_ROMBERG_GD(B122,D122,E122,F122),"") -> 
A123: 108 | B123: x^63 | C123: FINITE_108 | D123: x | E123: 0 | F123: 1 | G123: =1/64 -> 0.015625 | H123: =IF($H$5=1,QUAD_ROMBERG_GD(B123,D123,E123,F123),"") -> 
A124: 109 | B124: 1/(x+0.5) | C124: FINITE_109 | D124: x | E124: 0 | F124: 1 | G124: =LN(3) -> 1.098612289 | H124: =IF($H$5=1,QUAD_ROMBERG_GD(B124,D124,E124,F124),"") -> 
A125: 110 | B125: SQRT(12.25-(5*x-3)^2) | C125: FINITE_110 | D125: x | E125: 0 | F125: 1 | G125: =(SQRT(132)+SQRT(117)+49/2*(ASIN(6/7)+ASIN(4/7)))/20 -> 3.121768371 | H125: =IF($H$5=1,QUAD_ROMBERG_GD(B125,D125,E125,F125),"") -> 
A126: 111 | B126: 10/(1+(10*x-4)^2) | C126: FINITE_111 | D126: x | E126: 0 | F126: 1 | G126: =PI()-ATAN(10/23) -> 2.731465313 | H126: =IF($H$5=1,QUAD_ROMBERG_GD(B126,D126,E126,F126),"") -> 
A127: 112 | B127: 1/SQRT(x*(1-x)) | C127: FINITE_112 | D127: x | E127: 0 | F127: 1 | G127: =PI() -> 3.141592654 | H127: =IF($H$5=1,QUAD_ROMBERG_GD(B127,D127,E127,F127),"") -> 
A128: 113 | B128: x^(-3/4)*(1-x)^(-0.25)/(3-2*x) | C128: FINITE_113 | D128: x | E128: 0 | F128: 1 | G128: =PI()*SQRT(2/3/SQRT(3)) -> 1.949054259 | H128: =IF($H$5=1,QUAD_ROMBERG_GD(B128,D128,E128,F128),"") -> 
A129: 114 | B129: 1/(5+4*COS(x)) | C129: FINITE_114 | D129: x | E129: 0 | F129: =PI() -> 3.141592654 | G129: 1.047197551 | H129: =IF($H$5=1,QUAD_ROMBERG_GD(B129,D129,E129,F129),"") -> 
A130: 115 | B130: LN(x)*SQRT(x/(1-x)) | C130: FINITE_115 | D130: x | E130: 0 | F130: 1 | G130: -0.6067897635 | H130: =IF($H$5=1,QUAD_ROMBERG_GD(B130,D130,E130,F130),"") -> 
A131: 116 | B131: LN(ABS((TAN(x)+SQRT(7))/(TAN(x)-SQRT(7)))) | C131: FINITE_116 | D131: x | E131: =PI()/3 -> 1.047197551 | F131: =PI()/2 -> 1.570796327 | G131: =1.15192547054449/24*7*SQRT(7) -> 0.8889149278 | H131: =IF($H$5=1,QUAD_ROMBERG_GD(B131,D131,E131,F131),"") -> 
A132: 117 | B132: 1/(1+25*x^2) | C132: FINITE_117 | D132: x | E132: 0 | F132: 1 | G132: =0.2*ATAN(5) -> 0.2746801534 | H132: =IF($H$5=1,QUAD_ROMBERG_GD(B132,D132,E132,F132),"") -> 
A133: 118 | B133: COS(x)^3 | C133: FINITE_118 | D133: x | E133: 0 | F133: =PI()/2 -> 1.570796327 | G133: =2/3 -> 0.6666666667 | H133: =IF($H$5=1,QUAD_ROMBERG_GD(B133,D133,E133,F133),"") -> 
A134: 119 | B134: 1/(1+SIN(x)) | C134: FINITE_119 | D134: x | E134: 0 | F134: =PI()/4 -> 0.7853981634 | G134: 0.5857864373 | H134: =IF($H$5=1,QUAD_ROMBERG_GD(B134,D134,E134,F134),"") -> 
A135: 120 | B135: 1/(1-x^4/2) | C135: FINITE_120 | D135: x | E135: 0 | F135: 1 | G135: 1.143667254 | H135: =IF($H$5=1,QUAD_ROMBERG_GD(B135,D135,E135,F135),"") -> 
A136: 121 | B136: 1/(1+100*x^2) | C136: FINITE_121 | D136: x | E136: 0 | F136: 1 | G136: 0.1471127674 | H136: =IF($H$5=1,QUAD_ROMBERG_GD(B136,D136,E136,F136),"") -> 
A137: 122 | B137: LN(x)/x | C137: FINITE_122 | D137: x | E137: 1 | F137: 2 | G137: 0.240226507 | H137: =IF($H$5=1,QUAD_ROMBERG_GD(B137,D137,E137,F137),"") -> 
A138: 123 | B138: 1/(EXP(x)-1) | C138: FINITE_123 | D138: x | E138: 1 | F138: 2 | G138: 0.3132616875 | H138: =IF($H$5=1,QUAD_ROMBERG_GD(B138,D138,E138,F138),"") -> 
A139: 124 | B139: 1/(1+x^2) | C139: FINITE_124 | D139: x | E139: -4 | F139: 4 | G139: =2*ATAN(4) -> 2.651635327 | H139: =IF($H$5=1,QUAD_ROMBERG_GD(B139,D139,E139,F139),"") -> 
A140: 125 | B140: 1/(1+SIN(x)^2) | C140: FINITE_125 | D140: x | E140: 0 | F140: =PI()/2 -> 1.570796327 | G140: =PI()*SQRT(2)/4 -> 1.110720735 | H140: =IF($H$5=1,QUAD_ROMBERG_GD(B140,D140,E140,F140),"") -> 
A141: 126 | B141: SQRT(ABS(x^2-0.25)) | C141: FINITE_126 | D141: x | E141: 0 | F141: 1 | G141: =PI()/16+SQRT(3)/4-LN(2+SQRT(3))/8 -> 0.4647425056 | H141: =IF($H$5=1,QUAD_ROMBERG_GD(B141,D141,E141,F141),"") -> 
A142: 127 | B142: LN(SIN(PI()*x)) | C142: FINITE_127 | D142: x | E142: 0 | F142: 1 | G142: =-LN(2) -> -0.6931471806 | H142: =IF($H$5=1,QUAD_ROMBERG_GD(B142,D142,E142,F142),"") -> 
A143: 128 | B143: ABS(x-0.4) | C143: FINITE_128 | D143: x | E143: 0 | F143: 1 | G143: =0.26 -> 0.26 | H143: =IF($H$5=1,QUAD_ROMBERG_GD(B143,D143,E143,F143),"") -> 
A144: 129 | B144: EXP(-2*ABS(x-0.4)) | C144: FINITE_129 | D144: x | E144: 0 | F144: 1 | G144: =1-(EXP(-0.8)+EXP(-1.2))/2 -> 0.624738412 | H144: =IF($H$5=1,QUAD_ROMBERG_GD(B144,D144,E144,F144),"") -> 
A145: 130 | B145: LN(ABS(x-0.3)) | C145: FINITE_130 | D145: x | E145: 0 | F145: 1 | G145: =0.3*LN(0.3)+0.7*LN(0.7)-1 -> -1.610864302 | H145: =IF($H$5=1,QUAD_ROMBERG_GD(B145,D145,E145,F145),"") -> 
A146: 131 | B146: 1/(x+0.01)^5 | C146: FINITE_131 | D146: x | E146: 0 | F146: 1 | G146: =(10^8-1.01^-4)/4 -> 24999999.76 | H146: =IF($H$5=1,QUAD_ROMBERG_GD(B146,D146,E146,F146),"") -> 
A147: 132 | B147: 1/SQRT(x+0.0001) | C147: FINITE_132 | D147: x | E147: 0 | F147: 1 | G147: =2*SQRT(1.0001)-1/50 -> 1.980099998 | H147: =IF($H$5=1,QUAD_ROMBERG_GD(B147,D147,E147,F147),"") -> 
A148: 133 | B148: 1/(x+0.0001) | C148: FINITE_133 | D148: x | E148: 0 | F148: 1 | G148: =LN(10001) -> 9.210440367 | H148: =IF($H$5=1,QUAD_ROMBERG_GD(B148,D148,E148,F148),"") -> 
A149: 134 | B149: 1/((230*x-30)^2+1) | C149: FINITE_134 | D149: x | E149: 0 | F149: 1 | G149: =(ATAN(200)+ATAN(30))/230 -> 0.01349248565 | H149: =IF($H$5=1,QUAD_ROMBERG_GD(B149,D149,E149,F149),"") -> 
A150: 135 | B150: 1/(x+0.01) | C150: FINITE_135 | D150: x | E150: 0 | F150: 1 | G150: =LN(101) -> 4.615120517 | H150: =IF($H$5=1,QUAD_ROMBERG_GD(B150,D150,E150,F150),"") -> 
A151: 136 | B151: x*SIN(30*x)*COS(x) | C151: FINITE_136 | D151: x | E151: 0 | F151: =2*PI() -> 6.283185307 | G151: =-60*PI()/899 -> -0.2096724797 | H151: =IF($H$5=1,QUAD_ROMBERG_GD(B151,D151,E151,F151),"") -> 
A152: 137 | B152: EXP(-x)*SIN(10*x) | C152: FINITE_137 | D152: x | E152: 0 | F152: =2*PI() -> 6.283185307 | G152: =(1-EXP(-2*PI()))/10.1 -> 0.09882500567 | H152: =IF($H$5=1,QUAD_ROMBERG_GD(B152,D152,E152,F152),"") -> 
A153: 138 | B153: x*(1-x)^2/(1+x)^3 | C153: FINITE_138 | D153: x | E153: 0 | F153: 1 | G153: =5*(0.7-LN(2)) -> 0.0342640972 | H153: =IF($H$5=1,QUAD_ROMBERG_GD(B153,D153,E153,F153),"") -> 
A154: 139 | B154: x^12*(1-x)^12/16/(1+x^2) | C154: FINITE_139 | D154: x | E154: 0 | F154: 1 | G154: =431302721/137287920-PI() -> 7.384244327e-10 | H154: =IF($H$5=1,QUAD_ROMBERG_GD(B154,D154,E154,F154),"") -> 
A155: 140 | B155: x^12*(1-x)^12/16 | C155: FINITE_140 | D155: x | E155: 0 | F155: 1 | G155: =1/1081662400 -> 9.245028763e-10 | H155: =IF($H$5=1,QUAD_ROMBERG_GD(B155,D155,E155,F155),"") -> 
A156: 141 | B156: ATAN(SQRT(x^2+2))/SQRT(x^2+2)/(x^2+1) | C156: FINITE_141 | D156: x | E156: 0 | F156: 1 | G156: =5*PI()^2/96 -> 0.5140418959 | H156: =IF($H$5=1,QUAD_ROMBERG_GD(B156,D156,E156,F156),"") -> 
A157: 142 | B157: 1/(1+x^2+x^4) | C157: FINITE_142 | D157: x | E157: 0 | F157: 1 | G157: =LN(9)/8+PI()/SQRT(48) -> 0.7281029132 | H157: =IF($H$5=1,QUAD_ROMBERG_GD(B157,D157,E157,F157),"") -> 
A158: 143 | B158: (x+0.1)^5 | C158: FINITE_143 | D158: x | E158: 0 | F158: 1 | G158: 0.29526 | H158: =IF($H$5=1,QUAD_ROMBERG_GD(B158,D158,E158,F158),"") -> 
A159: 144 | B159: 1/(x^2+0.0001) | C159: FINITE_144 | D159: x | E159: 0 | F159: 1 | G159: 156.079666 | H159: =IF($H$5=1,QUAD_ROMBERG_GD(B159,D159,E159,F159),"") -> 
A160: 145 | B160: SQRT(x*(1-x)) | C160: FINITE_145 | D160: x | E160: 0 | F160: 1 | G160: 0.3926990817 | H160: =IF($H$5=1,QUAD_ROMBERG_GD(B160,D160,E160,F160),"") -> 
A161: 146 | B161: 1/(9+x^6) | C161: FINITE_146 | D161: x | E161: 0 | F161: 1 | G161: 0.1094455613 | H161: =IF($H$5=1,QUAD_ROMBERG_GD(B161,D161,E161,F161),"") -> 
A162: 147 | B162: (x+0.01)^5 | C162: FINITE_147 | D162: x | E162: 0 | F162: 1 | G162: 0.1769200251 | H162: =IF($H$5=1,QUAD_ROMBERG_GD(B162,D162,E162,F162),"") -> 
A163: 148 | B163: 1/(1-0.99*x^4) | C163: FINITE_148 | D163: x | E163: 0 | F163: 1 | G163: 2.067156144 | H163: =IF($H$5=1,QUAD_ROMBERG_GD(B163,D163,E163,F163),"") -> 
A164: 149 | B164: x*EXP(-3*x^2) | C164: FINITE_149 | D164: x | E164: 0 | F164: 1 | G164: 0.1583688219 | H164: =IF($H$5=1,QUAD_ROMBERG_GD(B164,D164,E164,F164),"") -> 
A165: 150 | B165: x^2*LN(EXP(1)/x) | C165: FINITE_150 | D165: x | E165: 0 | F165: 1 | G165: =4/9 -> 0.4444444444 | H165: =IF($H$5=1,QUAD_ROMBERG_GD(B165,D165,E165,F165),"") -> 
A166: 151 | B166: (4*SQRT(2)-8*x^3-4*SQRT(2)*x^4-8*x^5)/(1-x^8) | C166: FINITE_151 | D166: x | E166: 0 | F166: =1/SQRT(2) -> 0.7071067812 | G166: =PI() -> 3.141592654 | H166: =IF($H$5=1,QUAD_ROMBERG_GD(B166,D166,E166,F166),"") -> 
A167: 152 | B167: 1/(3-2*x)*1/SQRT(x*(1-x)) | C167: FINITE_152 | D167: x | E167: 0 | F167: 1 | G167: =PI()/SQRT(3) -> 1.813799364 | H167: =IF($H$5=1,QUAD_ROMBERG_GD(B167,D167,E167,F167),"") -> 
A168: 153 | B168: COS(2*PI()*x)/SQRT(1-x) | C168: FINITE_153 | D168: x | E168: 0 | F168: 1 | G168: =0.48825340607534 -> 0.4882534061 | H168: =IF($H$5=1,QUAD_ROMBERG_GD(B168,D168,E168,F168),"") -> 
A169: 154 | B169: 2*(1-x^2)/(TAN(0.5)^2+x^2) | C169: FINITE_154 | D169: x | E169: -1 | F169: 1 | G169: =4*(PI()-1-SIN(1))/SIN(1) -> 6.180232912 | H169: =IF($H$5=1,QUAD_ROMBERG_GD(B169,D169,E169,F169),"") -> 
A170: 155 | B170: 1/SQRT(1-0.5*SIN(x)^2) | C170: FINITE_155 | D170: x | E170: 0 | F170: =PI()/2 -> 1.570796327 | G170: =1.85407467730137 -> 1.854074677 | H170: =IF($H$5=1,QUAD_ROMBERG_GD(B170,D170,E170,F170),"") -> 
A171: 156 | B171: 2*(1-x^2)/(COS(4*ATANH(x))+COSH(2)) | C171: FINITE_156 | D171: x | E171: -1 | F171: 1 | G171: =0.711943822970598 -> 0.711943823 | H171: =IF($H$5=1,QUAD_ROMBERG_GD(B171,D171,E171,F171),"") -> 
A172: 157 | B172: ACOS(COS(PI()*x)^2)/3/SIN(PI()*x)+0.5 | C172: FINITE_157 | D172: x | E172: 0 | F172: 1 | G172: =0.995555497762367 -> 0.9955554978 | H172: =IF($H$5=1,QUAD_ROMBERG_GD(B172,D172,E172,F172),"") -> 
A173: 158 | B173: SIN(x) | C173: FINITE_158 | D173: x | E173: 0 | F173: =PI() -> 3.141592654 | G173: 2 | H173: =IF($H$5=1,QUAD_ROMBERG_GD(B173,D173,E173,F173),"") -> 
A174: 159 | B174: SIN(x)*COS(x) | C174: FINITE_159 | D174: x | E174: 0 | F174: 1 | G174: =SIN(1)^2/2 -> 0.3540367091 | H174: =IF($H$5=1,QUAD_ROMBERG_GD(B174,D174,E174,F174),"") -> 
A175: 160 | B175: SQRT(2*x+7) | C175: FINITE_160 | D175: x | E175: 1 | F175: 9 | G175: =98/3 -> 32.66666667 | H175: =IF($H$5=1,QUAD_ROMBERG_GD(B175,D175,E175,F175),"") -> 
A176: 161 | B176: x^3*EXP(-x) | C176: FINITE_161 | D176: x | E176: 0 | F176: 5 | G176: =4.40984450821582 -> 4.409844508 | H176: =IF($H$5=1,QUAD_ROMBERG_GD(B176,D176,E176,F176),"") -> 
A177: 162 | B177: SIN(10*x)*EXP(-x) | C177: FINITE_162 | D177: x | E177: 0 | F177: 10 | G177: =0.099006252443586 -> 0.09900625244 | H177: =IF($H$5=1,QUAD_ROMBERG_GD(B177,D177,E177,F177),"") -> 
A178: 163 | B178: 1/(1+x^64) | C178: FINITE_163 | D178: x | E178: 0 | F178: 1 | G178: =0.989366989363264 -> 0.9893669894 | H178: =IF($H$5=1,QUAD_ROMBERG_GD(B178,D178,E178,F178),"") -> 
A179: 164 | B179: SQRT(x)/(x-1)-1/LN(x) | C179: FINITE_164 | D179: x | E179: 0 | F179: 1 | G179: =0.0364899739785765 -> 0.03648997398 | H179: =IF($H$5=1,QUAD_ROMBERG_GD(B179,D179,E179,F179),"") -> 
A180: 165 | B180: EXP(x^2*(1-x)^2) | C180: FINITE_165 | D180: x | E180: 0 | F180: 1 | G180: =1.03414105175077 -> 1.034141052 | H180: =IF($H$5=1,QUAD_ROMBERG_GD(B180,D180,E180,F180),"") ->  | L180: =IF($H$5=1,IF(AND(ISNUMBER(G180),ISNUMBER(H180)),IF(G180=0,ABS(ABS(G180)-ABS(H180)), ABS(ABS(G180)-ABS(H180))/ABS(G180)),""),"") ->  | M180: =IF($H$5=1,IF(AND(ISNUMBER(G180),ISNUMBER(H180)),IF(L180=0,15,IF(L180>1,0,IF(INT(ABS(LOG(L180)))>15,15,INT(ABS(LOG(L180)))))),""),"") ->  | N180: =IF($H$5=1,IF(OR(ISNUMBER(H180)=FALSE,M180=0),"Cannot calculate",""),"") -> 
A181: 166 | B181: LN(x)*SIN(10*x) | C181: FINITE_166 | D181: x | E181: 0 | F181: =2*PI() -> 6.283185307 | G181: =-0.471793074421961 -> -0.4717930744 | H181: =IF($H$5=1,QUAD_ROMBERG_GD(B181,D181,E181,F181),"") -> 
A182: 167 | B182: COS(8*SIN(x)-x)/PI() | C182: FINITE_167 | D182: x | E182: 0 | F182: =PI() -> 3.141592654 | G182: =0.234636346853914 -> 0.2346363469 | H182: =IF($H$5=1,QUAD_ROMBERG_GD(B182,D182,E182,F182),"") -> 
A183: 168 | B183: x*SIN(10*x)*COS(x) | C183: FINITE_168 | D183: x | E183: 0 | F183: =2*PI() -> 6.283185307 | G183: =-0.634665182543392 -> -0.6346651825 | H183: =IF($H$5=1,QUAD_ROMBERG_GD(B183,D183,E183,F183),"") -> 
A184: 169 | B184: 23*COSH(x)/25-COS(x) | C184: FINITE_169 | D184: x | E184: -1 | F184: 1 | G184: =0.479428226688801 -> 0.4794282267 | H184: =IF($H$5=1,QUAD_ROMBERG_GD(B184,D184,E184,F184),"") -> 
A185: 170 | B185: x^3*SIN(10*PI()*x)/SQRT(1-x^2) | C185: FINITE_170 | D185: x | E185: -1 | F185: 1 | G185: =-0.301833279121779 -> -0.3018332791 | H185: =IF($H$5=1,QUAD_ROMBERG_GD(B185,D185,E185,F185),"") -> 
A186: 171 | B186: COS(x)*LN(x) | C186: FINITE_171 | D186: x | E186: 0 | F186: 1 | G186: =-0.946083070367183 -> -0.9460830704 | H186: =IF($H$5=1,QUAD_ROMBERG_GD(B186,D186,E186,F186),"") -> 
A187: 172 | B187: LN(1+x)*SIN(10*x) | C187: FINITE_172 | D187: x | E187: 0 | F187: =2*PI() -> 6.283185307 | G187: =-0.197626807718717 -> -0.1976268077 | H187: =IF($H$5=1,QUAD_ROMBERG_GD(B187,D187,E187,F187),"") -> 
A188: 173 | B188: x^(PI()/4)*SIN(PI()/(8-4*x)) | C188: FINITE_173 | D188: x | E188: 0 | F188: 2 | G188: =1.01123909053 -> 1.011239091 | H188: =IF($H$5=1,QUAD_ROMBERG_GD(B188,D188,E188,F188),"") -> 
A189: 174 | B189: x^x | C189: FINITE_174 | D189: x | E189: 0 | F189: 1 | G189: =0.783430510712134 -> 0.7834305107 | H189: =IF($H$5=1,QUAD_ROMBERG_GD(B189,D189,E189,F189),"") -> 
A190: 175 | B190: x^-x | C190: FINITE_175 | D190: x | E190: 0 | F190: 1 | G190: 1.291285997 | H190: =IF($H$5=1,QUAD_ROMBERG_GD(B190,D190,E190,F190),"") -> 
A191: 176 | B191: (4+COS(x))*LN(3+COS(x)) | C191: FINITE_176 | D191: x | E191: 0 | F191: =PI() -> 3.141592654 | G191: =PI()*(3-SQRT(8)+4*LN((3+SQRT(8))/2)) -> 13.98000201 | H191: =IF($H$5=1,QUAD_ROMBERG_GD(B191,D191,E191,F191),"") -> 
A192: 177 | B192: x^3-3*x^2 | C192: FINITE_177 | D192: x | E192: -2 | F192: 4 | G192: -12 | H192: =IF($H$5=1,QUAD_ROMBERG_GD(B192,D192,E192,F192),"") -> 
A193: 178 | B193: 2*SQRT(1-x^2) | C193: FINITE_178 | D193: x | E193: -1 | F193: 1 | G193: =PI() -> 3.141592654 | H193: =IF($H$5=1,QUAD_ROMBERG_GD(B193,D193,E193,F193),"") -> 
A194: 179 | B194: LN(x)^2 / (x^2+x+1) | C194: FINITE_179 | D194: x | E194: 0 | F194: 1 | G194: =8*PI()^3 / (81*SQRT(3)) -> 1.768047624 | H194: =IF($H$5=1,QUAD_ROMBERG_GD(B194,D194,E194,F194),"") -> 
A195: 180 | B195: x^2 / SIN(x)^2 | C195: FINITE_180 | D195: x | E195: 0 | F195: =PI()/2 -> 1.570796327 | G195: =PI()*LN(2) -> 2.17758609 | H195: =IF($H$5=1,QUAD_ROMBERG_GD(B195,D195,E195,F195),"") -> 
A196: 181 | B196: x^2/((1+x^4)*SQRT(1-x^4)) | C196: FINITE_181 | D196: x | E196: 0 | F196: 1 | G196: =PI()/8 -> 0.3926990817 | H196: =IF($H$5=1,QUAD_ROMBERG_GD(B196,D196,E196,F196),"") -> 
A197: 182 | B197: SQRT(x)/SQRT(1-x) | C197: FINITE_182 | D197: x | E197: 0 | F197: 1 | G197: =PI()/2/SIN(PI()/2) -> 1.570796327 | H197: =IF($H$5=1,QUAD_ROMBERG_GD(B197,D197,E197,F197),"") -> 
A198: 183 | B198: LN(x)/(1+LN(x))^2 | C198: FINITE_183 | D198: x | E198: 1 | F198: =EXP(1) -> 2.718281828 | G198: =EXP(1)/2-1 -> 0.3591409142 | H198: =IF($H$5=1,QUAD_ROMBERG_GD(B198,D198,E198,F198),"") -> 
A199: 184 | B199: ATAN(x)/x/(x^2+1) | C199: FINITE_184 | D199: x | E199: 0 | F199: 1 | G199: =PI()*LN(2)/8+0.915965594177219 /2 -> 0.7301810584 | H199: =IF($H$5=1,QUAD_ROMBERG_GD(B199,D199,E199,F199),"") -> 
A200: 185 | B200: COS(3*x)^2/(5-4*COS(2*x)) | C200: FINITE_185 | D200: x | E200: 0 | F200: =2*PI() -> 6.283185307 | G200: =3*PI()/8 -> 1.178097245 | H200: =IF($H$5=1,QUAD_ROMBERG_GD(B200,D200,E200,F200),"") -> 
A201: 186 | B201: x*TAN(x) | C201: FINITE_186 | D201: x | E201: 0 | F201: =PI()/4 -> 0.7853981634 | G201: 0.1857845358 | H201: =IF($H$5=1,QUAD_ROMBERG_GD(B201,D201,E201,F201),"") -> 
A202: 187 | B202: x^2/(1-COS(x)) | C202: FINITE_187 | D202: x | E202: 0 | F202: =PI()/2 -> 1.570796327 | G202: =PI()*LN(2)-PI()^2/4+4*0.915965594177219 -> 3.374047367 | H202: =IF($H$5=1,QUAD_ROMBERG_GD(B202,D202,E202,F202),"") -> 
... 13 more rows

Sheet CHART USAGE
B4: FUNCTION PLOTTER ON THE ROMBERG GD WORKSHEET:
B6: The function plotting chart on the ROMBERG GD worksheet is included for convenience to provide an easy way to view the plot of a selected function over the specified interval of integration.
B7: For convenience and ease of use, it makes use of and shares the function input data in Columns A, B, D, E and F used by the Romberg program, although it is completely independent from the Romberg program.
B8: The function plotter plots the functions entered in Column B.
B9: To enable (show) the plotting chart, after enabling macros, click the Click To Show Chart button, then select the function to be plotted from the list using the two arrow buttons.
B10: NOTE: A small pause may occur on the first up-down button click, but only for the first time.
B12: The function plotting chart is enabled or disabled by a button. By default, the chart is disabled (hidden).
B13: While the function plot is showing, the data used by the chart is shown as a highlighted bar of colour in the function listing, and the highlighted data in the functions list is duplicated in cells A11:F11 to confirm the data being plotted.
B14: Click the up and down arrow buttons to change the selected function.
B15: The plot is automatically generated after the function selection is made, or after any change to the data used by the selected function is made, such as one of the limits.
B16: The function to be plotted may also be selected by directly entering the respective function number, shown in column A, into cell A11.
B17: Do Not enter data into cells B11:F11. These are not input cells.
B18: To disable (hide) the chart, click the Click to Hide Chart button.
